[Event "Early-Titled-Tuesday-Blitz-February-20-2024"]
[Site "Chess.com"]
[Date "2024.02.20"]
[Round "11"]
[White "djano"]
[Black "Bilan_Danila"]
[Result "1-0"]
[WhiteElo "2665"]
[BlackElo "2488"]
[TimeControl "180+1"]
[EndTime "10:07:48 PST"]
[Termination "djano won by resignation"]

1. e4 {[%clk 0:03:00.9]} 1... c6 {[%clk 0:02:59.3]} 2. b3 {[%clk 0:02:59.1]}
2... d5 {[%clk 0:02:59.7]} 3. Bb2 {[%clk 0:02:59.8]} 3... dxe4 {[%clk
0:02:59.2]} 4. Nc3 {[%clk 0:03:00.3]} 4... Nf6 {[%clk 0:02:59.4]} 5. Qe2 {[%clk
0:03:00.7]} 5... Bg4 {[%clk 0:02:58.1]} 6. Qe3 {[%clk 0:02:59.4]} 6... Nbd7
{[%clk 0:02:53.9]} 7. Nxe4 {[%clk 0:02:57.3]} 7... e6 {[%clk 0:02:52.6]} 8. f3
{[%clk 0:02:50.2]} 8... Bf5 {[%clk 0:02:48.9]} 9. O-O-O {[%clk 0:02:50.4]} 9...
Qa5 {[%clk 0:02:37.8]} 10. Kb1 {[%clk 0:02:48.2]} 10... Be7 {[%clk 0:02:19.1]}
11. h4 {[%clk 0:02:46.3]} 11... Qb6 {[%clk 0:02:11.2]} 12. Qe1 {[%clk
0:02:33.8]} 12... Nxe4 {[%clk 0:02:01.6]} 13. fxe4 {[%clk 0:02:33.1]} 13... Bg4
{[%clk 0:02:02.4]} 14. Nf3 {[%clk 0:02:32.2]} 14... a5 {[%clk 0:01:55.6]} 15. a4
{[%clk 0:02:15.1]} 15... Bf6 {[%clk 0:01:43.1]} 16. e5 {[%clk 0:02:14.8]} 16...
Be7 {[%clk 0:01:39.3]} 17. Qg3 {[%clk 0:02:15]} 17... h5 {[%clk 0:01:38.3]} 18.
Bc4 {[%clk 0:02:00.9]} 18... Nc5 {[%clk 0:01:37.4]} 19. Qf4 {[%clk 0:01:55.1]}
19... Rd8 {[%clk 0:01:18.2]} 20. Rdf1 {[%clk 0:01:49.1]} 20... Nxa4 {[%clk
0:01:09.5]} 21. bxa4 {[%clk 0:01:40.3]} 21... Ba3 {[%clk 0:01:07.8]} 22. Bb3
{[%clk 0:01:39.5]} 22... Bxb2 {[%clk 0:00:57.4]} 23. Kxb2 {[%clk 0:01:39.4]}
23... O-O {[%clk 0:00:57.4]} 24. Qe3 {[%clk 0:01:33.3]} 24... Qc7 {[%clk
0:00:52.3]} 25. Nh2 {[%clk 0:01:23.7]} 25... Bf5 {[%clk 0:00:47.8]} 26. Rhg1
{[%clk 0:01:22.2]} 26... b5 {[%clk 0:00:44.3]} 27. g4 {[%clk 0:01:18.5]} 27...
hxg4 {[%clk 0:00:44.9]} 28. Nxg4 {[%clk 0:01:17.9]} 28... bxa4 {[%clk
0:00:44.6]} 29. Nf6+ {[%clk 0:01:14.3]} 29... Kh8 {[%clk 0:00:42.7]} 30. Rxf5
{[%clk 0:01:09.3]} 30... exf5 {[%clk 0:00:34.6]} 31. Rxg7 {[%clk 0:01:09.4]}
31... Qxe5+ {[%clk 0:00:11.2]} 32. Qxe5 {[%clk 0:01:10.3]} 32... Kxg7 {[%clk
0:00:12]} 33. Ne8+ {[%clk 0:01:07.2]} 33... Kh6 {[%clk 0:00:11.3]} 34. Qg7+
{[%clk 0:01:04.2]} 1-0

[Event "Early-Titled-Tuesday-Blitz-February-20-2024"]
[Site "Chess.com"]
[Date "2024.02.20"]
[Round "11"]
[White "KuzubovYuriy"]
[Black "Hikaru"]
[Result "1-0"]
[WhiteElo "2980"]
[BlackElo "3246"]
[TimeControl "180+1"]
[EndTime "10:07:49 PST"]
[Termination "KuzubovYuriy won by resignation"]

1. d4 {[%clk 0:03:00.9]} 1... g6 {[%clk 0:02:59.7]} 2. e4 {[%clk 0:02:59.6]}
2... Bg7 {[%clk 0:02:59.7]} 3. Nf3 {[%clk 0:03:00.2]} 3... c6 {[%clk 0:02:59.2]}
4. Be2 {[%clk 0:02:54.8]} 4... d5 {[%clk 0:02:59.1]} 5. Nc3 {[%clk 0:02:52]}
5... dxe4 {[%clk 0:02:58.5]} 6. Nxe4 {[%clk 0:02:51.9]} 6... Nf6 {[%clk
0:02:59.4]} 7. Nxf6+ {[%clk 0:02:49.8]} 7... exf6 {[%clk 0:03:00.3]} 8. O-O
{[%clk 0:02:49.8]} 8... O-O {[%clk 0:03:00.5]} 9. Re1 {[%clk 0:02:50]} 9... Nd7
{[%clk 0:02:59.9]} 10. Bf4 {[%clk 0:02:47]} 10... Re8 {[%clk 0:02:55.9]} 11. Qd2
{[%clk 0:02:45.7]} 11... Nf8 {[%clk 0:02:54.6]} 12. h3 {[%clk 0:02:40.2]} 12...
Bf5 {[%clk 0:02:51.6]} 13. Bc4 {[%clk 0:02:36.3]} 13... Be4 {[%clk 0:02:46.4]}
14. Nh2 {[%clk 0:02:30.2]} 14... Qd7 {[%clk 0:02:18.6]} 15. Ng4 {[%clk
0:02:22.5]} 15... g5 {[%clk 0:02:18.3]} 16. Bh2 {[%clk 0:02:13.2]} 16... Bg6
{[%clk 0:01:52.7]} 17. c3 {[%clk 0:01:50.7]} 17... c5 {[%clk 0:01:39.6]} 18.
Rad1 {[%clk 0:01:14.5]} 18... Rad8 {[%clk 0:01:29.1]} 19. Rxe8 {[%clk
0:01:04.8]} 19... Qxe8 {[%clk 0:01:30]} 20. Qe3 {[%clk 0:01:04.1]} 20... Qd7
{[%clk 0:00:51.7]} 21. Qf3 {[%clk 0:01:00.5]} 21... Qf5 {[%clk 0:00:47.4]} 22.
Qxf5 {[%clk 0:00:57.3]} 22... Bxf5 {[%clk 0:00:47.6]} 23. Ne3 {[%clk 0:00:57.9]}
23... Be6 {[%clk 0:00:45]} 24. Bxe6 {[%clk 0:00:57.3]} 24... Nxe6 {[%clk
0:00:45.8]} 25. d5 {[%clk 0:00:55.2]} 25... Nf8 {[%clk 0:00:45.6]} 26. g4 {[%clk
0:00:51.5]} 26... Ng6 {[%clk 0:00:44.4]} 27. Kf1 {[%clk 0:00:49.4]} 27... Bf8
{[%clk 0:00:42.2]} 28. Nf5 {[%clk 0:00:47.7]} 28... Ne7 {[%clk 0:00:42]} 29.
Nxe7+ {[%clk 0:00:42.4]} 29... Bxe7 {[%clk 0:00:42.9]} 30. d6 {[%clk 0:00:40.2]}
30... Bf8 {[%clk 0:00:29.7]} 31. d7 {[%clk 0:00:39.7]} 1-0

[Event "Early-Titled-Tuesday-Blitz-February-20-2024"]
[Site "Chess.com"]
[Date "2024.02.20"]
[Round "11"]
[White "JaackCamel"]
[Black "Raffael89"]
[Result "1-0"]
[WhiteElo "2174"]
[BlackElo "1852"]
[TimeControl "180+1"]
[EndTime "10:07:56 PST"]
[Termination "JaackCamel won by checkmate"]

1. d4 {[%clk 0:02:58.9]} 1... d5 {[%clk 0:02:57.8]} 2. c4 {[%clk 0:02:58.4]}
2... c6 {[%clk 0:02:57.6]} 3. cxd5 {[%clk 0:02:58]} 3... cxd5 {[%clk 0:02:58.5]}
4. Bf4 {[%clk 0:02:57.7]} 4... Nf6 {[%clk 0:02:58.6]} 5. e3 {[%clk 0:02:55.7]}
5... Nc6 {[%clk 0:02:59]} 6. Nc3 {[%clk 0:02:54.4]} 6... g6 {[%clk 0:02:49.1]}
7. Bd3 {[%clk 0:02:49.4]} 7... a6 {[%clk 0:02:46.4]} 8. h3 {[%clk 0:02:48.9]}
8... Bg7 {[%clk 0:02:46.4]} 9. Nf3 {[%clk 0:02:48.6]} 9... O-O {[%clk
0:02:46.8]} 10. O-O {[%clk 0:02:48.3]} 10... Bf5 {[%clk 0:02:47.2]} 11. Bxf5
{[%clk 0:02:45.6]} 11... gxf5 {[%clk 0:02:48.1]} 12. Ne5 {[%clk 0:02:43.6]}
12... Kh8 {[%clk 0:02:44]} 13. Nxc6 {[%clk 0:02:30.9]} 13... bxc6 {[%clk
0:02:42.5]} 14. Rc1 {[%clk 0:02:30.9]} 14... Qb6 {[%clk 0:02:36.5]} 15. Na4
{[%clk 0:02:29.5]} 15... Qb7 {[%clk 0:02:31.9]} 16. b3 {[%clk 0:02:25.6]} 16...
Nd7 {[%clk 0:01:57.6]} 17. Nc5 {[%clk 0:02:20.9]} 17... Nxc5 {[%clk 0:01:56.9]}
18. Rxc5 {[%clk 0:02:20.5]} 18... Rg8 {[%clk 0:01:49.2]} 19. Qc2 {[%clk
0:02:20.3]} 19... Rac8 {[%clk 0:01:48.7]} 20. Qxf5 {[%clk 0:02:19.5]} 20... e6
{[%clk 0:01:47.2]} 21. Qh5 {[%clk 0:02:12.4]} 21... f5 {[%clk 0:01:33]} 22. Rfc1
{[%clk 0:02:05.6]} 22... Bf6 {[%clk 0:01:32.4]} 23. Qh6 {[%clk 0:01:58.7]} 23...
Rg6 {[%clk 0:01:29.5]} 24. Qh5 {[%clk 0:01:53]} 24... Rcg8 {[%clk 0:01:24.9]}
25. g3 {[%clk 0:01:49.5]} 25... Bg5 {[%clk 0:01:02]} 26. Rxc6 {[%clk 0:01:39.2]}
26... Bxf4 {[%clk 0:01:01.6]} 27. exf4 {[%clk 0:01:38.8]} 27... Qb4 {[%clk
0:00:32.1]} 28. Rc7 {[%clk 0:01:28.7]} 28... h6 {[%clk 0:00:29.1]} 29. Rc8
{[%clk 0:01:09.9]} 29... Kh7 {[%clk 0:00:24.8]} 30. Rxg8 {[%clk 0:01:04.2]}
30... Rxg8 {[%clk 0:00:25.7]} 31. Qf7+ {[%clk 0:01:02.5]} 31... Rg7 {[%clk
0:00:24.3]} 32. Qxe6 {[%clk 0:01:02.1]} 32... Qd2 {[%clk 0:00:10.1]} 33. Qxf5+
{[%clk 0:01:00.5]} 33... Kg8 {[%clk 0:00:06.2]} 34. Rc8# {[%clk 0:00:59.3]} 1-0

[Event "Early-Titled-Tuesday-Blitz-February-20-2024"]
[Site "Chess.com"]
[Date "2024.02.20"]
[Round "11"]
[White "CarlosjPineror"]
[Black "vladgoncharov"]
[Result "0-1"]
[WhiteElo "2572"]
[BlackElo "2655"]
[TimeControl "180+1"]
[EndTime "10:07:57 PST"]
[Termination "vladgoncharov won by resignation"]

1. e4 {[%clk 0:03:00.9]} 1... e6 {[%clk 0:02:59.8]} 2. d4 {[%clk 0:02:57.1]}
2... d5 {[%clk 0:03:00.3]} 3. e5 {[%clk 0:02:57.6]} 3... c5 {[%clk 0:02:59.9]}
4. c3 {[%clk 0:02:58.4]} 4... Nc6 {[%clk 0:03:00.2]} 5. Nf3 {[%clk 0:02:59.2]}
5... Nge7 {[%clk 0:03:00.4]} 6. a3 {[%clk 0:02:59.7]} 6... c4 {[%clk 0:02:53.6]}
7. Be2 {[%clk 0:02:54.4]} 7... Bd7 {[%clk 0:02:53.2]} 8. O-O {[%clk 0:02:54.2]}
8... Nc8 {[%clk 0:02:52.5]} 9. Bf4 {[%clk 0:02:43.5]} 9... Na5 {[%clk
0:02:50.8]} 10. Nbd2 {[%clk 0:02:43.3]} 10... Nb6 {[%clk 0:02:51]} 11. Qc1
{[%clk 0:02:41.8]} 11... h6 {[%clk 0:02:49.1]} 12. Bd1 {[%clk 0:02:41.8]} 12...
Ba4 {[%clk 0:02:45.2]} 13. Bxa4+ {[%clk 0:02:40.1]} 13... Nxa4 {[%clk
0:02:44.7]} 14. Qc2 {[%clk 0:02:40.3]} 14... Qd7 {[%clk 0:02:42.3]} 15. h4
{[%clk 0:02:36.8]} 15... Be7 {[%clk 0:02:41.4]} 16. h5 {[%clk 0:02:37.1]} 16...
b5 {[%clk 0:02:39.4]} 17. Be3 {[%clk 0:02:35.3]} 17... Rc8 {[%clk 0:02:17.9]}
18. Ne1 {[%clk 0:02:34.1]} 18... f5 {[%clk 0:02:13.4]} 19. exf6 {[%clk
0:02:33.8]} 19... Bxf6 {[%clk 0:02:13.4]} 20. Bf4 {[%clk 0:02:33]} 20... O-O
{[%clk 0:02:10.9]} 21. Bg3 {[%clk 0:02:31.2]} 21... Qf7 {[%clk 0:02:05.4]} 22.
Nef3 {[%clk 0:02:14.4]} 22... Qxh5 {[%clk 0:02:03.6]} 23. Rfe1 {[%clk 0:02:14]}
23... Qf5 {[%clk 0:01:50.7]} 24. Qc1 {[%clk 0:02:03.6]} 24... Nc6 {[%clk
0:01:42.9]} 25. Nf1 {[%clk 0:02:00.6]} 25... g5 {[%clk 0:01:36]} 26. Ne3 {[%clk
0:02:00.7]} 26... Qg6 {[%clk 0:01:34.2]} 27. Ng4 {[%clk 0:02:00.8]} 27... Bg7
{[%clk 0:01:26.5]} 28. Be5 {[%clk 0:01:51]} 28... h5 {[%clk 0:01:19.1]} 29. Bxg7
{[%clk 0:01:50.3]} 29... Rxf3 {[%clk 0:01:18.5]} 30. gxf3 {[%clk 0:01:43.6]}
30... hxg4 {[%clk 0:01:18.4]} 31. Be5 {[%clk 0:01:19.3]} 31... gxf3 {[%clk
0:01:17.6]} 32. Qe3 {[%clk 0:01:20]} 32... Qf5 {[%clk 0:01:06.2]} 33. Bg3 {[%clk
0:01:18]} 33... Kf7 {[%clk 0:01:05.6]} 34. Rab1 {[%clk 0:00:22.7]} 34... Rh8
{[%clk 0:01:03.4]} 35. Qxe6+ {[%clk 0:00:16.9]} 35... Qxe6 {[%clk 0:01:01.5]}
36. Rxe6 {[%clk 0:00:17.8]} 36... Kxe6 {[%clk 0:01:01.2]} 37. Re1+ {[%clk
0:00:18.7]} 37... Kd7 {[%clk 0:01:01.1]} 38. Re3 {[%clk 0:00:19.6]} 38... g4
{[%clk 0:01:00.5]} 0-1

[Event "Early-Titled-Tuesday-Blitz-February-20-2024"]
[Site "Chess.com"]
[Date "2024.02.20"]
[Round "11"]
[White "Karttunen"]
[Black "AlexeiShirov"]
[Result "0-1"]
[WhiteElo "2680"]
[BlackElo "2846"]
[TimeControl "180+1"]
[EndTime "10:08:00 PST"]
[Termination "AlexeiShirov won by resignation"]

1. e4 {[%clk 0:03:00.9]} 1... e5 {[%clk 0:02:59.6]} 2. Nf3 {[%clk 0:03:00.5]}
2... Nc6 {[%clk 0:02:59.4]} 3. Bb5 {[%clk 0:03:00.2]} 3... a6 {[%clk 0:02:59.6]}
4. Ba4 {[%clk 0:02:59.8]} 4... Nf6 {[%clk 0:02:59.6]} 5. O-O {[%clk 0:02:55.6]}
5... b5 {[%clk 0:02:59.9]} 6. Bb3 {[%clk 0:02:55]} 6... Bc5 {[%clk 0:03:00.5]}
7. c3 {[%clk 0:02:50.8]} 7... d6 {[%clk 0:03:00.6]} 8. d4 {[%clk 0:02:49.9]}
8... Bb6 {[%clk 0:03:00.7]} 9. a4 {[%clk 0:02:49.9]} 9... Rb8 {[%clk 0:03:00]}
10. a5 {[%clk 0:02:50.2]} 10... Ba7 {[%clk 0:02:59.3]} 11. Re1 {[%clk
0:02:45.3]} 11... Bg4 {[%clk 0:02:57.6]} 12. d5 {[%clk 0:02:12.7]} 12... Ne7
{[%clk 0:02:56]} 13. Be3 {[%clk 0:02:09.5]} 13... Bxe3 {[%clk 0:02:51.4]} 14.
Rxe3 {[%clk 0:02:08.9]} 14... Ng6 {[%clk 0:02:46.8]} 15. h3 {[%clk 0:02:06.8]}
15... h5 {[%clk 0:02:42.4]} 16. Nbd2 {[%clk 0:01:58.7]} 16... Nf4 {[%clk
0:02:38.2]} 17. Qf1 {[%clk 0:01:57.6]} 17... Bxf3 {[%clk 0:02:29.2]} 18. Rxf3
{[%clk 0:01:51.6]} 18... g5 {[%clk 0:02:27.3]} 19. g3 {[%clk 0:01:38.6]} 19...
Nxh3+ {[%clk 0:02:23.4]} 20. Kg2 {[%clk 0:01:28.4]} 20... h4 {[%clk 0:02:13.3]}
21. Qe2 {[%clk 0:01:00.1]} 21... Nh5 {[%clk 0:01:45.1]} 22. Kxh3 {[%clk
0:00:31]} 22... hxg3 {[%clk 0:01:44.8]} 23. Kg2 {[%clk 0:00:23.4]} 23... Nf4+
{[%clk 0:01:40.7]} 24. Rxf4 {[%clk 0:00:23.7]} 24... gxf4 {[%clk 0:01:32.7]} 25.
fxg3 {[%clk 0:00:21.7]} 25... Qg5 {[%clk 0:01:29.8]} 26. Nf1 {[%clk 0:00:16.4]}
26... Ke7 {[%clk 0:01:27.1]} 27. c4 {[%clk 0:00:12.3]} 27... fxg3 {[%clk
0:01:18.6]} 28. c5 {[%clk 0:00:10.3]} 28... Rbg8 {[%clk 0:01:14.2]} 29. cxd6+
{[%clk 0:00:08.7]} 29... cxd6 {[%clk 0:01:13.1]} 30. Qc2 {[%clk 0:00:08]} 30...
Rh2+ {[%clk 0:01:09.4]} 31. Nxh2 {[%clk 0:00:06.6]} 31... gxh2+ {[%clk
0:01:09.1]} 32. Kf3 {[%clk 0:00:06]} 32... Qf4+ {[%clk 0:01:08.1]} 33. Ke2
{[%clk 0:00:05]} 0-1

[Event "Early-Titled-Tuesday-Blitz-February-20-2024"]
[Site "Chess.com"]
[Date "2024.02.20"]
[Round "11"]
[White "BillCoe"]
[Black "cukin84"]
[Result "0-1"]
[WhiteElo "2138"]
[BlackElo "2242"]
[TimeControl "180+1"]
[EndTime "10:08:02 PST"]
[Termination "cukin84 won by resignation"]

1. e4 {[%clk 0:03:00.9]} 1... c6 {[%clk 0:02:59.7]} 2. d4 {[%clk 0:02:59.9]}
2... d5 {[%clk 0:02:59.9]} 3. Nc3 {[%clk 0:03:00.4]} 3... a6 {[%clk 0:02:59.5]}
4. Nf3 {[%clk 0:02:58]} 4... Bg4 {[%clk 0:02:58.5]} 5. h3 {[%clk 0:02:54.3]}
5... Bxf3 {[%clk 0:02:58.1]} 6. Qxf3 {[%clk 0:02:53.8]} 6... e6 {[%clk
0:02:58.4]} 7. exd5 {[%clk 0:02:48.7]} 7... cxd5 {[%clk 0:02:58]} 8. Bd3 {[%clk
0:02:47.9]} 8... Nc6 {[%clk 0:02:57.8]} 9. Be3 {[%clk 0:02:46.5]} 9... Nf6
{[%clk 0:02:54.7]} 10. O-O {[%clk 0:02:45.1]} 10... Bd6 {[%clk 0:02:54.1]} 11.
Ne2 {[%clk 0:02:43.2]} 11... b5 {[%clk 0:02:50.1]} 12. c3 {[%clk 0:02:41.9]}
12... Qc7 {[%clk 0:02:49.8]} 13. Bf4 {[%clk 0:02:40.4]} 13... Bxf4 {[%clk
0:02:47]} 14. Nxf4 {[%clk 0:02:40.7]} 14... Rc8 {[%clk 0:02:38]} 15. Rfe1 {[%clk
0:02:39.1]} 15... O-O {[%clk 0:02:33.1]} 16. Nh5 {[%clk 0:02:34.6]} 16... Nxh5
{[%clk 0:02:32.6]} 17. Qxh5 {[%clk 0:02:35.2]} 17... g6 {[%clk 0:02:32.9]} 18.
Qh6 {[%clk 0:02:30.5]} 18... Qe7 {[%clk 0:02:23.3]} 19. Re3 {[%clk 0:02:28.8]}
19... Qf6 {[%clk 0:02:22.2]} 20. Rae1 {[%clk 0:02:27.9]} 20... Qg7 {[%clk
0:02:21.7]} 21. Qh4 {[%clk 0:02:26.7]} 21... Na5 {[%clk 0:02:18.7]} 22. Bb1
{[%clk 0:02:18.5]} 22... b4 {[%clk 0:02:18.3]} 23. Qe7 {[%clk 0:02:08.5]} 23...
bxc3 {[%clk 0:02:16.5]} 24. bxc3 {[%clk 0:02:09.4]} 24... Nc4 {[%clk 0:02:16.1]}
25. Rg3 {[%clk 0:02:00.3]} 25... Nd2 {[%clk 0:02:13.8]} 26. Bc2 {[%clk
0:01:55.3]} 26... Rfe8 {[%clk 0:02:08.6]} 27. Qd6 {[%clk 0:01:49.7]} 27... a5
{[%clk 0:02:05.8]} 28. Ba4 {[%clk 0:01:41.2]} 28... Ne4 {[%clk 0:02:03.3]} 29.
Qa3 {[%clk 0:01:32.3]} 29... Nxg3 {[%clk 0:01:59.4]} 30. Bxe8 {[%clk 0:01:31.5]}
30... Ne4 {[%clk 0:01:55.8]} 31. Bd7 {[%clk 0:01:22.2]} 31... Rxc3 {[%clk
0:01:51.3]} 32. Qxa5 {[%clk 0:01:22.6]} 32... Rc2 {[%clk 0:01:25.1]} 33. Qd8+
{[%clk 0:00:59.6]} 33... Qf8 {[%clk 0:01:24.5]} 34. Qxf8+ {[%clk 0:00:59.1]}
34... Kxf8 {[%clk 0:01:25.3]} 35. a4 {[%clk 0:00:58.3]} 35... Nxf2 {[%clk
0:01:22.5]} 36. Ra1 {[%clk 0:00:54.3]} 36... Ne4 {[%clk 0:01:16.4]} 37. a5
{[%clk 0:00:53.7]} 37... Rc7 {[%clk 0:01:16]} 38. Bb5 {[%clk 0:00:51.6]} 38...
Nc3 {[%clk 0:01:15.2]} 39. Bd3 {[%clk 0:00:50.3]} 39... Ra7 {[%clk 0:01:08.1]}
40. a6 {[%clk 0:00:50.4]} 40... Ke7 {[%clk 0:01:08.3]} 41. Ra3 {[%clk
0:00:50.1]} 41... Ne4 {[%clk 0:00:58.7]} 42. Rb3 {[%clk 0:00:47.8]} 42... Nd6
{[%clk 0:00:57.9]} 43. Rb6 {[%clk 0:00:47.3]} 43... Kd7 {[%clk 0:00:56.8]} 44.
Bb5+ {[%clk 0:00:44.1]} 44... Nxb5 {[%clk 0:00:53.7]} 45. Rxb5 {[%clk 0:00:45]}
45... Rxa6 {[%clk 0:00:53.9]} 46. Rb7+ {[%clk 0:00:44.5]} 46... Ke8 {[%clk
0:00:54.2]} 47. Rb8+ {[%clk 0:00:43.5]} 47... Ke7 {[%clk 0:00:54.3]} 48. Rb7+
{[%clk 0:00:40.8]} 48... Kf6 {[%clk 0:00:54.5]} 0-1

[Event "Early-Titled-Tuesday-Blitz-February-20-2024"]
[Site "Chess.com"]
[Date "2024.02.20"]
[Round "11"]
[White "tarno17"]
[Black "NM_Antelacus"]
[Result "1-0"]
[WhiteElo "2156"]
[BlackElo "2239"]
[TimeControl "180+1"]
[EndTime "10:08:05 PST"]
[Termination "tarno17 won by resignation"]

1. e4 {[%clk 0:03:00.9]} 1... c5 {[%clk 0:02:59.9]} 2. Nf3 {[%clk 0:03:00.8]}
2... Nc6 {[%clk 0:03:00.1]} 3. Bb5 {[%clk 0:03:01.2]} 3... g6 {[%clk 0:02:59.5]}
4. O-O {[%clk 0:03:01.5]} 4... Bg7 {[%clk 0:02:59.4]} 5. c3 {[%clk 0:03:00.8]}
5... Nf6 {[%clk 0:02:57.3]} 6. e5 {[%clk 0:02:58.4]} 6... Nd5 {[%clk 0:02:56.8]}
7. d4 {[%clk 0:02:50.9]} 7... cxd4 {[%clk 0:02:55.9]} 8. cxd4 {[%clk 0:02:51.8]}
8... O-O {[%clk 0:02:54.7]} 9. Nc3 {[%clk 0:02:39.6]} 9... Nxc3 {[%clk
0:02:53.9]} 10. bxc3 {[%clk 0:02:40.5]} 10... d5 {[%clk 0:02:53.7]} 11. Be3
{[%clk 0:02:28.3]} 11... Qa5 {[%clk 0:02:51]} 12. Qb3 {[%clk 0:02:17.5]} 12...
a6 {[%clk 0:02:41.1]} 13. Bd3 {[%clk 0:02:13.3]} 13... e6 {[%clk 0:02:26.9]} 14.
Rac1 {[%clk 0:02:04.1]} 14... b5 {[%clk 0:02:26.1]} 15. Bg5 {[%clk 0:01:55.6]}
15... Bd7 {[%clk 0:02:24]} 16. Qc2 {[%clk 0:01:50.9]} 16... Rfc8 {[%clk
0:02:20.9]} 17. Qd2 {[%clk 0:01:49.4]} 17... b4 {[%clk 0:02:16.9]} 18. c4 {[%clk
0:01:38.6]} 18... dxc4 {[%clk 0:02:12.7]} 19. Rxc4 {[%clk 0:01:36.7]} 19... Qb6
{[%clk 0:02:02.8]} 20. Bf6 {[%clk 0:01:22.9]} 20... a5 {[%clk 0:01:57.8]} 21.
Rfc1 {[%clk 0:01:16.1]} 21... Na7 {[%clk 0:01:55.4]} 22. Bxg7 {[%clk 0:01:07.4]}
22... Kxg7 {[%clk 0:01:53.8]} 23. Qg5 {[%clk 0:01:08]} 23... Bb5 {[%clk
0:01:43.2]} 24. Qf6+ {[%clk 0:01:05]} 24... Kg8 {[%clk 0:01:42.5]} 25. Rxc8+
{[%clk 0:00:45.3]} 25... Rxc8 {[%clk 0:01:41.4]} 26. Rxc8+ {[%clk 0:00:41.6]}
26... Nxc8 {[%clk 0:01:40.4]} 27. Bxb5 {[%clk 0:00:38.3]} 27... Qxb5 {[%clk
0:01:35.7]} 28. Qd8+ {[%clk 0:00:37.5]} 28... Kg7 {[%clk 0:01:35.2]} 29. Qxc8
{[%clk 0:00:37.5]} 29... Qe2 {[%clk 0:01:33]} 30. h3 {[%clk 0:00:23.2]} 30...
Qxa2 {[%clk 0:01:32.2]} 31. Qd8 {[%clk 0:00:20.7]} 31... Qb2 {[%clk 0:01:15.6]}
32. Qf6+ {[%clk 0:00:21]} 32... Kf8 {[%clk 0:01:14.3]} 33. Ng5 {[%clk
0:00:18.8]} 33... Qb1+ {[%clk 0:01:10.6]} 34. Kh2 {[%clk 0:00:18.3]} 34... Qf5
{[%clk 0:01:09.5]} 35. Nxe6+ {[%clk 0:00:13.4]} 35... Ke8 {[%clk 0:01:07.2]} 36.
Ng7+ {[%clk 0:00:13.1]} 36... Kd7 {[%clk 0:01:05.8]} 37. Nxf5 {[%clk 0:00:13.3]}
37... gxf5 {[%clk 0:01:04.6]} 38. Qxf5+ {[%clk 0:00:13.4]} 38... Kc6 {[%clk
0:01:04.5]} 39. Qxf7 {[%clk 0:00:13.6]} 39... a4 {[%clk 0:01:03.4]} 40. Qc4+
{[%clk 0:00:13.9]} 40... Kb6 {[%clk 0:01:02.8]} 41. Qxb4+ {[%clk 0:00:14.1]} 1-0

[Event "Early-Titled-Tuesday-Blitz-February-20-2024"]
[Site "Chess.com"]
[Date "2024.02.20"]
[Round "11"]
[White "ATM622"]
[Black "K_A_S_T_O_R"]
[Result "0-1"]
[WhiteElo "2474"]
[BlackElo "2804"]
[TimeControl "180+1"]
[EndTime "10:08:06 PST"]
[Termination "K_A_S_T_O_R won by checkmate"]

1. d4 {[%clk 0:03:00.9]} 1... Nf6 {[%clk 0:02:58.6]} 2. c4 {[%clk 0:03:01]} 2...
e6 {[%clk 0:02:58.8]} 3. g3 {[%clk 0:03:01.2]} 3... c5 {[%clk 0:02:58.9]} 4. d5
{[%clk 0:03:01]} 4... exd5 {[%clk 0:02:58.9]} 5. cxd5 {[%clk 0:03:01.9]} 5... d6
{[%clk 0:02:59.8]} 6. Bg2 {[%clk 0:03:01.6]} 6... g6 {[%clk 0:03:00.7]} 7. Nf3
{[%clk 0:03:02]} 7... Bg7 {[%clk 0:03:01.3]} 8. O-O {[%clk 0:03:02.6]} 8... O-O
{[%clk 0:03:02]} 9. Nc3 {[%clk 0:03:02.9]} 9... Re8 {[%clk 0:03:02.2]} 10. Nd2
{[%clk 0:03:02.5]} 10... a6 {[%clk 0:03:01.2]} 11. a4 {[%clk 0:03:02.4]} 11...
Nbd7 {[%clk 0:03:01.6]} 12. Nc4 {[%clk 0:03:02]} 12... Ne5 {[%clk 0:03:00.5]}
13. Nxe5 {[%clk 0:03:01.6]} 13... Rxe5 {[%clk 0:03:00.2]} 14. e4 {[%clk
0:03:01.5]} 14... Re8 {[%clk 0:02:59.5]} 15. Re1 {[%clk 0:03:01.4]} 15... Ng4
{[%clk 0:02:59.3]} 16. h3 {[%clk 0:03:00.2]} 16... Ne5 {[%clk 0:02:59.2]} 17. f4
{[%clk 0:02:50.3]} 17... Nc4 {[%clk 0:02:59]} 18. Qd3 {[%clk 0:02:45.4]} 18...
Na5 {[%clk 0:02:54.9]} 19. Be3 {[%clk 0:02:36.3]} 19... c4 {[%clk 0:02:37]} 20.
Qc2 {[%clk 0:02:28.2]} 20... Bd7 {[%clk 0:02:32.8]} 21. Rad1 {[%clk 0:02:19]}
21... Nb3 {[%clk 0:02:32.4]} 22. Bf1 {[%clk 0:02:14.6]} 22... b5 {[%clk
0:02:31.7]} 23. Ne2 {[%clk 0:01:57]} 23... Bf5 {[%clk 0:02:25.9]} 24. Bg2 {[%clk
0:01:47.7]} 24... Qe7 {[%clk 0:02:18.9]} 25. exf5 {[%clk 0:00:52.8]} 25... Qxe3+
{[%clk 0:02:17.4]} 26. Kh1 {[%clk 0:00:49.3]} 26... Qf2 {[%clk 0:02:16.6]} 27.
fxg6 {[%clk 0:00:35.4]} 27... hxg6 {[%clk 0:02:15.4]} 28. Be4 {[%clk 0:00:23.5]}
28... Nc5 {[%clk 0:02:06.3]} 29. Rf1 {[%clk 0:00:23]} 29... Nxe4 {[%clk
0:01:59.9]} 30. Rxf2 {[%clk 0:00:23.1]} 30... Nxf2+ {[%clk 0:02:00.4]} 31. Kg2
{[%clk 0:00:23.3]} 31... Nxd1 {[%clk 0:02:00.9]} 32. Qxd1 {[%clk 0:00:23.1]}
32... Re3 {[%clk 0:02:01.1]} 33. Nd4 {[%clk 0:00:15.5]} 33... Rd3 {[%clk
0:02:00.2]} 34. Qg4 {[%clk 0:00:06.8]} 34... Rxd4 {[%clk 0:01:58.6]} 35. axb5
{[%clk 0:00:06.7]} 35... axb5 {[%clk 0:01:58.4]} 36. Qd7 {[%clk 0:00:07.1]}
36... Rxd5 {[%clk 0:01:58.1]} 37. Qb7 {[%clk 0:00:02.7]} 37... Rd2+ {[%clk
0:01:57.3]} 38. Kf3 {[%clk 0:00:03]} 38... Re8 {[%clk 0:01:56.4]} 39. Qxb5
{[%clk 0:00:03.1]} 39... Rd3+ {[%clk 0:01:55.9]} 40. Kg4 {[%clk 0:00:03.3]}
40... Re4 {[%clk 0:01:51.8]} 41. Qb8+ {[%clk 0:00:02.8]} 41... Kh7 {[%clk
0:01:51.1]} 42. h4 {[%clk 0:00:03.1]} 42... f5+ {[%clk 0:01:49.8]} 43. Kh3
{[%clk 0:00:03.3]} 43... Ree3 {[%clk 0:01:50.1]} 44. h5 {[%clk 0:00:03.6]} 44...
Rxg3+ {[%clk 0:01:50.2]} 45. Kh2 {[%clk 0:00:04]} 45... Rh3+ {[%clk 0:01:46.1]}
46. Kg2 {[%clk 0:00:04.1]} 46... Rdg3+ {[%clk 0:01:44.6]} 47. Kf2 {[%clk
0:00:04.2]} 47... Bd4+ {[%clk 0:01:44.9]} 48. Ke2 {[%clk 0:00:02.3]} 48... Rh2+
{[%clk 0:01:45]} 49. Kf1 {[%clk 0:00:02.6]} 49... Rg1# {[%clk 0:01:45.2]} 0-1